bitfinex/quotes_SOLUSD_20230401
["timestamp","ask_amount","ask_price","bid_price","bid_amount"]
[1680316789889,30.0,20.954,20.953,6.9048]
[1680316790089,49.089,20.954,20.953,0.0048]
[1680316790295,10.0,20.953,20.937,10.0]
[1680316790604,20.0,20.952,20.937,10.0]
[1680316791415,10.0,20.951,20.937,10.0]
[1680316791706,10.0,20.951,20.937,7.0]
[1680316791901,10.0,20.951,20.938,17.0]
[1680316792302,10.0,20.951,20.939,10.0]
[1680316792507,20.0,20.952,20.939,10.0]
[1680316793018,10.0,20.966,20.94,40.67]
[1680316793312,10.0,20.966,20.942,10.0]
[1680316793811,10.0,20.966,20.943,17.0]
[1680316794003,10.0,20.966,20.944,10.0]
[1680316794202,10.0,20.966,20.945,17.0]
[1680316794410,10.0,20.966,20.946,10.0]
[1680316794708,40.72,20.96,20.946,10.0]
[1680316794906,10.0,20.959,20.946,10.0]
[1680316795709,10.0,20.963,20.946,10.0]
[1680316795909,10.0,20.963,20.948,10.0]
[1680316796108,10.0,20.963,20.949,17.0]
[1680316796703,10.0,20.966,20.949,17.0]
[1680316797017,20.0,20.965,20.949,17.0]
[1680316797322,20.0,20.965,20.95,10.0]
[1680316797504,20.0,20.965,20.951,17.0]
[1680316797705,20.0,20.965,20.952,10.0]
[1680316797908,20.0,20.965,20.953,17.0]
[1680316798106,10.0,20.964,20.953,17.0]
[1680316798306,20.0,20.963,20.953,17.0]
[1680316798716,20.0,20.963,20.954,10.0]
[1680316798912,20.0,20.963,20.955,17.0]
[1680316800022,19.761302,20.963,20.955,17.0]
[1680316800616,19.761302,20.963,20.951,113.3992]
[1680316801208,10.0,20.962,20.951,113.3992]
[1680316802218,10.0,20.962,20.937,33.17264171]
[1680316802219,40.61,20.96,20.937,7.0]
[1680316802431,19.086,20.957,20.937,7.0]
[1680316802731,10.0,20.955,20.937,7.0]
[1680316802921,20.0,20.954,20.937,7.0]
[1680316803318,10.0,20.953,20.937,7.0]
[1680316803631,10.0,20.951,20.937,7.0]
[1680316804023,10.0,20.953,20.937,7.0]
[1680316804235,20.0,20.952,20.937,7.0]
[1680316805212,10.0,20.951,20.937,7.0]
[1680316807540,20.0,20.952,20.937,7.0]
[1680316807925,10.0,20.955,20.937,7.0]
[1680316807926,20.0,20.954,20.937,7.0]
[1680316808134,10.0,20.953,20.939,10.0]
[1680316808326,20.0,20.952,20.94,17.0]
[1680316808734,20.0,20.952,20.941,10.0]
[1680316808930,20.0,20.952,20.942,17.0]
[1680316809533,20.0,20.952,20.943,10.0]
[1680316810341,24.2792406,20.962,20.944,17.0]
[1680316810743,24.2792406,20.962,20.945,10.0]
[1680316810943,24.2792406,20.962,20.947,10.0]
[1680316811333,24.2792406,20.962,20.947,9.5]
[1680316812547,24.2792406,20.962,20.945,10.0]
[1680316812732,24.2792406,20.962,20.947,10.0]
[1680316812934,24.2792406,20.962,20.944,132.3799]
[1680316812935,59.794,20.96,20.944,115.3799]
[1680316813141,10.0,20.959,20.934,10.0]
[1680316813350,19.087,20.956,20.934,119.877]
[1680316813533,20.0,20.955,20.934,119.877]
[1680316813735,10.0,20.954,20.934,119.877]
[1680316813944,20.0,20.953,20.934,119.877]
[1680316814142,10.0,20.952,20.934,119.877]
[1680316814340,20.0,20.951,20.934,119.877]
[1680316815339,20.0,20.953,20.934,119.877]
[1680316815543,10.0,20.952,20.934,119.877]
[1680316815755,10.0,20.952,20.938,17.0]
[1680316816063,10.0,20.95,20.934,119.877]
[1680316816269,20.0,20.949,20.934,119.877]
[1680316816761,10.0,20.948,20.934,119.877]
[1680316816935,20.0,20.947,20.934,119.877]
[1680316817936,20.0,20.949,20.934,119.877]
[1680316818337,20.0,20.949,20.936,17.0]
[1680316818756,20.0,20.949,20.937,10.0]
[1680316818948,20.0,20.949,20.938,17.0]
[1680316819148,10.0,20.948,20.939,10.0]
[1680316819447,20.0,20.947,20.939,10.0]
[1680316819838,20.0,20.947,20.939,9.5]
[1680316820038,20.0,20.947,20.938,17.0]
[1680316822347,20.0,20.947,20.936,17.0]
[1680316823242,20.0,20.947,20.934,119.877]
[1680316823637,20.0,20.947,20.936,17.0]
[1680316824045,20.0,20.947,20.937,10.0]
[1680316824255,20.0,20.947,20.938,17.0]
[1680316825062,20.0,20.947,20.934,119.877]
[1680316825657,20.0,20.947,20.936,17.0]
[1680316825957,20.0,20.947,20.937,10.0]
[1680316826164,20.0,20.947,20.938,17.0]
[1680316826361,20.0,20.947,20.937,10.0]
[1680316826745,10.0,20.947,20.938,17.0]
[1680316827053,20.0,20.946,20.938,17.0]
[1680316827249,20.0,20.946,20.936,17.0]
[1680316827448,20.0,20.946,20.934,109.877]
[1680316827855,20.0,20.946,20.935,10.0]
[1680316828360,20.0,20.948,20.935,10.0]
[1680316828760,20.0,20.948,20.924,7.81886204]
[1680316828957,10.0,20.947,20.934,10.0]
[1680316829257,10.0,20.945,20.934,10.0]
[1680316829455,20.0,20.944,20.934,10.0]
[1680316830062,20.0,20.944,20.927,10.0]
[1680316830258,20.0,20.944,20.934,17.0]
[1680316830564,20.0,20.944,20.935,10.0]
[1680316831265,20.0,20.946,20.935,10.0]
[1680316835572,20.0,20.946,20.936,17.0]
[1680316836067,20.0,20.946,20.937,10.0]
[1680316836375,20.0,20.947,20.938,17.0]
[1680316836560,20.0,20.947,20.935,10.0]
[1680316836760,10.0,20.946,20.936,17.0]
[1680316836953,20.0,20.945,20.936,17.0]
[1680316837159,10.0,20.944,20.935,17.0]
[1680316837360,20.0,20.943,20.935,17.0]
[1680316838362,33.67305055,20.948,20.935,17.0]
[1680316838363,20.0,20.945,20.935,17.0]
[1680316838666,20.0,20.947,20.935,17.0]
[1680316838867,20.0,20.947,20.936,10.0]
[1680316839067,20.0,20.947,20.937,17.0]
[1680316839268,20.0,20.947,20.938,10.0]
[1680316840351,20.0,20.947,20.937,17.0]
[1680316845681,20.0,20.947,20.938,10.0]
[1680316845873,20.0,20.947,20.939,17.0]
[1680316846178,20.0,20.947,20.94,10.0]
[1680316846377,20.0,20.947,20.941,17.0]
[1680316847584,20.0,20.947,20.938,10.0]
[1680316847777,20.0,20.947,20.939,17.0]
[1680316851878,10.0,20.946,20.937,17.0]
[1680316852081,20.0,20.945,20.937,17.0]
[1680316852384,20.0,20.945,20.936,17.0]
[1680316854675,20.0,20.947,20.937,10.0]
[1680316854875,20.0,20.947,20.938,17.0]
[1680316860175,10.0,20.946,20.936,17.0]
[1680316860370,20.0,20.945,20.936,17.0]
[1680316860773,19.0,20.945,20.936,17.0]
[1680316861485,19.0,20.945,20.937,10.0]
[1680316861680,19.0,20.945,20.938,17.0]
[1680316862284,23.67305055,20.948,20.938,17.0]
[1680316862486,10.0,20.949,20.938,17.0]
[1680316862881,20.0,20.948,20.938,17.0]
[1680316865392,20.0,20.949,20.938,17.0]
[1680316865579,20.0,20.949,20.939,10.0]
[1680316865781,20.0,20.949,20.94,17.0]
[1680316866492,20.0,20.949,20.941,10.0]
[1680316866682,20.0,20.949,20.939,10.0]
[1680316866891,10.0,20.948,20.939,10.0]
[1680316867082,20.0,20.947,20.939,10.0]
[1680316867481,10.0,20.946,20.927,10.0]
[1680316867685,20.0,20.945,20.93,27.03]
[1680316868396,20.0,20.945,20.934,111.8478]
[1680316868698,10.0,20.944,20.935,10.0]
[1680316868907,20.0,20.943,20.935,10.0]
[1680316869696,20.0,20.943,20.936,17.0]
[1680316870287,20.0,20.945,20.936,17.0]
[1680316871210,10.0,20.944,20.93,138.3918]
[1680316871387,20.0,20.943,20.935,10.0]
[1680316872299,20.0,20.945,20.935,10.0]
[1680316872804,20.0,20.945,20.937,10.0]
[1680316873292,20.0,20.945,20.936,17.0]
[1680316874800,10.0,20.947,20.937,10.0]
[1680316875006,20.0,20.946,20.938,17.0]
[1680316875888,20.0,20.948,20.938,17.0]
[1680316876302,10.0,20.947,20.938,17.0]
[1680316876611,10.0,20.945,20.938,17.0]
[1680316876910,20.0,20.944,20.938,17.0]
[1680316877085,20.0,20.944,20.935,10.0]
[1680316877286,20.0,20.944,20.936,17.0]
[1680316879405,20.0,20.946,20.936,17.0]
[1680316879601,20.0,20.946,20.937,10.0]
[1680316879791,20.0,20.946,20.938,17.0]
[1680316881402,20.0,20.948,20.938,17.0]
[1680316881811,20.0,20.949,20.939,10.0]
[1680316882107,20.0,20.949,20.94,17.0]
[1680316885299,20.0,20.949,20.941,10.0]
[1680316885599,20.0,20.949,20.942,17.0]
[1680316888806,20.0,20.949,20.937,10.0]
[1680316889013,20.0,20.949,20.93,138.3918]
[1680316889224,10.0,20.948,20.93,138.3918]
[1680316889514,20.0,20.947,20.93,138.3918]
[1680316890019,10.0,20.946,20.93,111.3618]
[1680316890213,10.0,20.946,20.933,111.7519]
[1680316890214,20.0,20.945,20.933,111.7519]
[1680316890398,20.0,20.945,20.934,17.0]
[1680316890804,20.0,20.945,20.935,10.0]
[1680316891125,20.0,20.945,20.937,10.0]
[1680316891620,20.0,20.945,20.935,10.0]
[1680316891819,20.0,20.945,20.937,10.0]
[1680316893816,20.0,20.945,20.936,17.0]
[1680316896911,20.0,20.947,20.936,17.0]
[1680316897105,10.0,20.946,20.936,17.0]
[1680316897305,20.0,20.945,20.936,17.0]
[1680316902220,20.0,20.945,20.933,111.7519]
[1680316902421,20.0,20.945,20.934,17.0]
[1680316902920,20.0,20.945,20.935,10.0]
[1680316903118,20.0,20.945,20.936,17.0]
[1680316906624,20.0,20.945,20.937,10.0]
[1680316906808,20.0,20.948,20.938,17.0]
[1680316908021,20.0,20.948,20.939,10.0]
[1680316908208,20.0,20.948,20.94,17.0]
[1680316912529,20.0,20.948,20.941,10.0]
[1680316912734,20.0,20.948,20.942,17.0]
[1680316913230,20.0,20.948,20.937,10.0]
[1680316913417,20.0,20.948,20.938,17.0]
[1680316913614,10.0,20.947,20.938,17.0]
[1680316913814,20.0,20.946,20.938,17.0]
[1680316920020,20.0,20.947,20.938,17.0]
[1680316921823,10.0,20.946,20.938,17.0]
[1680316922021,20.0,20.945,20.938,17.0]
[1680316922736,20.0,20.945,20.936,17.0]
[1680316930031,10.0,20.944,20.934,17.0]
[1680316930229,20.0,20.943,20.934,17.0]
[1680316931844,20.0,20.943,20.935,10.0]
[1680316932046,20.0,20.943,20.936,17.0]
[1680316932844,20.0,20.943,20.934,10.0]
[1680316933028,20.0,20.943,20.93,111.3618]
[1680316933830,10.0,20.942,20.93,111.3618]
[1680316934027,10.0,20.942,20.922,119.2405]
[1680316934028,27.14,20.94,20.922,119.2405]
[1680316934227,20.0,20.939,20.922,119.2405]
[1680316934827,10.0,20.938,20.922,119.2405]
[1680316935033,20.0,20.937,20.922,119.2405]
[1680316935732,10.0,20.936,20.922,119.2405]
[1680316935945,20.0,20.935,20.918,14.55909334]
[1680316936144,20.0,20.935,20.916,23.59759299]
[1680316936145,20.0,20.935,20.914,118.7343]
[1680316936443,20.0,20.935,20.914,125.80294171]
[1680316936639,10.0,20.934,20.915,10.0]
[1680316936840,20.0,20.933,20.915,17.06864171]
[1680316937042,10.0,20.932,20.915,17.06864171]
[1680316937347,10.0,20.932,20.917,10.0]
[1680316937549,10.0,20.932,20.918,17.0]
[1680316937750,10.0,20.932,20.919,10.0]
[1680316938048,10.0,20.932,20.921,10.0]
[1680316938249,10.0,20.932,20.925,20.0]
[1680316941353,20.0,20.933,20.925,20.0]
[1680316942851,10.0,20.936,20.926,17.0]
[1680316942852,20.0,20.935,20.926,17.0]
[1680316943055,10.0,20.936,20.925,20.0]
[1680316943356,37.14,20.94,20.926,17.0]
[1680316943545,10.0,20.94,20.927,10.0]
[1680316943858,10.0,20.94,20.928,17.0]
[1680316944240,10.0,20.94,20.929,10.0]
[1680316944442,10.0,20.94,20.93,17.0]
[1680316945137,10.0,20.943,20.93,17.0]
[1680316945653,10.0,20.943,20.931,10.0]
[1680316945836,10.0,20.943,20.932,17.0]
[1680316946036,10.0,20.943,20.931,10.0]
[1680316946236,10.0,20.943,20.932,17.0]
[1680316947143,10.0,20.943,20.933,115.889]
[1680316947339,10.0,20.948,20.934,17.0]
[1680316947546,10.0,20.948,20.935,10.0]
[1680316947761,10.0,20.948,20.936,17.0]
[1680316947942,20.0,20.947,20.937,10.0]
[1680316948258,20.0,20.947,20.938,17.0]
[1680316950856,20.0,20.949,20.938,17.0]
[1680316954462,20.0,20.949,20.939,10.0]
[1680316954663,20.0,20.949,20.94,17.0]
[1680316955751,20.0,20.952,20.941,10.0]
[1680316955960,20.0,20.952,20.942,17.0]
[1680316961059,20.0,20.952,20.943,10.0]
[1680316961261,20.0,20.952,20.944,17.0]
[1680316965964,20.0,20.952,20.944,17.0]
[1680316967461,20.0,20.952,20.945,10.0]
[1680316967664,20.0,20.952,20.946,17.0]
[1680316968257,20.0,20.952,20.947,10.0]
[1680316968453,20.0,20.951,20.931,10.0]
[1680316968760,58.24684099,20.951,20.936,14.08225067]
[1680316968945,10.0,20.95,20.939,10.0]
[1680316969150,10.0,20.948,20.939,10.0]
[1680316969351,20.0,20.947,20.939,10.0]
[1680316969857,20.0,20.947,20.94,17.0]
[1680316972069,20.0,20.95,20.94,17.0]
[1680316972970,10.0,20.951,20.94,17.0]
[1680316973161,20.0,20.95,20.94,17.0]
[1680316979867,58.24684099,20.95,20.94,17.0]
[1680316982679,10.0,20.949,20.94,17.0]
[1680316982880,20.0,20.948,20.941,17.0]
[1680316983065,20.0,20.948,20.938,17.0]
[1680316983266,10.0,20.947,20.938,17.0]
[1680316983466,20.0,20.946,20.938,17.0]
[1680316984766,10.0,20.947,20.938,17.0]
[1680316984966,20.0,20.946,20.938,17.0]
[1680316986578,20.0,20.948,20.938,17.0]
[1680316986780,20.0,20.948,20.936,115.0696]
[1680316987162,10.0,20.947,20.933,115.889]
[1680316987367,20.0,20.946,20.933,115.889]
[1680316987665,39.097,20.946,20.933,115.889]
[1680316988076,10.0,20.945,20.933,115.889]
[1680316988282,20.0,20.944,20.933,115.889]
[1680316988862,10.0,20.943,20.933,115.889]
[1680316989484,10.0,20.943,20.934,17.0]
[1680316990076,20.0,20.944,20.935,10.0]
[1680316990271,20.0,20.944,20.936,17.0]
[1680316990782,20.0,20.944,20.936,10.0]
[1680316990976,20.0,20.944,20.937,17.0]
[1680316993386,20.0,20.944,20.935,17.0]
[1680316995387,20.0,20.945,20.935,17.0]
[1680316995894,20.0,20.948,20.935,17.0]
[1680316996079,10.0,20.947,20.936,10.0]
[1680316996279,20.0,20.946,20.938,10.0]
[1680316996480,20.0,20.946,20.939,17.0]
[1680316999803,20.0,20.948,20.939,17.0]
[1680317000779,10.0,20.948,20.939,17.0]
[1680317000980,20.0,20.947,20.939,17.0]
[1680317001696,20.0,20.954,20.939,17.0]
[1680317002081,10.0,20.953,20.94,10.0]
[1680317002782,10.0,20.956,20.94,10.0]
[1680317003406,10.0,20.956,20.941,17.0]
[1680317003900,20.0,20.955,20.942,10.0]
[1680317004088,20.0,20.955,20.943,17.0]
[1680317004476,10.0,20.956,20.944,10.0]
[1680317004681,10.0,20.956,20.945,17.0]
[1680317005191,10.0,20.958,20.945,17.0]
[1680317005393,23.83800348,20.959,20.945,17.0]
[1680317005583,27.14,20.96,20.945,17.0]
[1680317005783,10.0,20.959,20.946,10.0]
[1680317005986,10.0,20.959,20.947,17.0]
[1680317006179,50.82371638,20.96,20.947,17.0]
[1680317006380,20.0,20.959,20.947,17.0]
[1680317006685,10.0,20.958,20.948,10.0]
[1680317006993,20.0,20.957,20.949,17.0]
[1680317007195,10.0,20.959,20.949,17.0]
[1680317008182,10.0,20.964,20.949,17.0]
[1680317008387,10.0,20.964,20.95,10.0]
[1680317008599,10.0,20.964,20.951,17.0]
[1680317008898,10.0,20.964,20.952,10.0]
[1680317009102,10.0,20.964,20.954,10.0]
[1680317009301,10.0,20.964,20.955,17.0]
[1680317010803,19.10911,20.956,20.955,17.0]
[1680317011302,19.10911,20.956,20.953,17.0]
[1680317011502,19.10911,20.956,20.951,17.0]
[1680317014901,19.10911,20.956,20.944,120.9933]
[1680317016193,19.10911,20.956,20.948,10.0]
[1680317016394,19.10911,20.956,20.949,17.0]
[1680317022313,10.0,20.963,20.949,17.0]
[1680317023214,10.0,20.963,20.95,10.0]
[1680317023400,10.0,20.963,20.951,17.0]
[1680317028729,14.54737578,20.973,20.952,16.21375973]
[1680317029026,14.54737578,20.973,20.954,10.0]
[1680317029027,10.0,20.972,20.954,10.0]
[1680317029321,10.0,20.972,20.955,134.8581]
[1680317029522,10.0,20.972,20.956,10.0]
[1680317029820,10.0,20.972,20.958,10.0]
[1680317030005,10.0,20.972,20.96,10.0]
[1680317030421,10.0,20.972,20.961,17.0]
[1680317031306,33.60687027,20.976,20.962,10.0]
[1680317031621,33.60687027,20.976,20.963,17.0]
[1680317032606,47.87648266,20.976,20.963,17.0]
[1680317032807,10.0,20.976,20.963,17.0]
[1680317035118,19.097302,20.97,20.963,16.902612]
[1680317035511,19.097302,20.97,20.96,10.0]
[1680317035712,19.097302,20.97,20.958,10.0]
[1680317037328,19.097302,20.97,20.959,17.0]
[1680317037535,19.097302,20.97,20.96,10.0]
[1680317037825,19.097302,20.97,20.962,10.0]
[1680317038027,19.097302,20.97,20.963,17.0]
[1680317040226,19.097302,20.97,20.958,10.0]
[1680317041524,19.097302,20.97,20.96,10.0]
[1680317041828,19.097302,20.97,20.961,17.0]
[1680317045130,10.0,20.976,20.961,17.0]
[1680317047432,10.0,20.976,20.962,10.0]
[1680317047627,10.0,20.976,20.963,17.0]
[1680317052537,10.0,20.974,20.963,17.0]
[1680317053227,20.0,20.975,20.963,17.0]
[1680317053834,10.0,20.974,20.963,17.0]
[1680317055827,10.0,20.974,20.961,17.0]
[1680317060629,10.0,20.974,20.959,17.0]
[1680317061026,27.14,20.97,20.953,19.085843]
[1680317061227,27.14,20.97,20.955,117.8581]
[1680317061228,10.0,20.969,20.955,117.8581]
[1680317061438,29.5,20.969,20.955,117.8581]
[1680317061647,29.5,20.969,20.953,19.085843]
[1680317063146,29.5,20.969,20.954,17.0]
[1680317066045,19.076,20.968,20.954,17.0]
[1680317066251,10.0,20.959,20.953,19.085843]
[1680317069533,10.0,20.959,20.946,119.533]
[1680317069734,10.0,20.959,20.947,17.0]
[1680317071153,10.0,20.959,20.944,110.9933]
[1680317071444,10.0,20.957,20.945,17.0]
[1680317071837,20.0,20.956,20.945,17.0]
[1680317072046,10.0,20.955,20.945,17.0]
[1680317072343,10.0,20.953,20.945,17.0]
[1680317072548,20.0,20.952,20.945,17.0]
[1680317072939,10.0,20.951,20.945,17.0]
[1680317073140,10.0,20.951,20.944,110.9933]
[1680317073335,10.0,20.951,20.94,10.0]
[1680317073737,10.0,20.951,20.939,115.9187]
[1680317073935,10.0,20.951,20.94,10.0]
[1680317074750,10.0,20.951,20.941,17.0]
[1680317076752,10.0,20.949,20.941,17.0]
[1680317076956,10.0,20.949,20.939,115.9187]
[1680317079855,10.0,20.949,20.94,10.0]
[1680317080356,10.0,20.949,20.941,27.14]
[1680317080548,27.14,20.95,20.941,27.14]
[1680317080749,10.0,20.949,20.941,27.14]
[1680317088557,27.14,20.95,20.941,27.14]
[1680317090269,10.0,20.949,20.941,27.14]
[1680317091463,27.14,20.95,20.941,27.14]
[1680317092580,10.0,20.951,20.941,27.14]
[1680317093172,10.0,20.951,20.934,10.0]
[1680317093368,10.0,20.951,20.937,10.0]
[1680317093570,10.0,20.951,20.939,10.0]
[1680317093867,10.0,20.951,20.941,10.0]
[1680317099580,10.0,20.951,20.939,10.0]
[1680317099771,10.0,20.951,20.94,17.0]
[1680317100980,10.0,20.953,20.94,17.0]
[1680317101284,10.0,20.954,20.94,17.0]
[1680317101482,20.0,20.953,20.94,17.0]
[1680317101866,20.0,20.954,20.941,10.0]
[1680317102064,20.0,20.954,20.942,17.0]
[1680317102267,20.0,20.955,20.942,17.0]
[1680317102782,20.0,20.955,20.943,10.0]
[1680317102984,20.0,20.955,20.944,17.0]
[1680317103783,20.0,20.955,20.945,10.0]
[1680317103992,20.0,20.955,20.946,17.0]
[1680317104781,20.0,20.956,20.947,10.0]
[1680317104978,10.0,20.96,20.948,17.0]
[1680317105178,33.22924193,20.963,20.948,17.0]
[1680317105179,33.22924193,20.963,20.949,10.0]
[1680317105379,33.22924193,20.963,20.95,17.0]
[1680317105768,33.22924193,20.963,20.951,10.0]
[1680317105969,33.22924193,20.963,20.952,17.0]
[1680317106385,19.103469,20.963,20.953,10.0]
[1680317106586,19.103469,20.963,20.954,17.0]
[1680317106885,19.103469,20.963,20.955,10.0]
[1680317107087,10.0,20.969,20.957,10.0]
[1680317107378,10.0,20.971,20.958,17.0]
[1680317107579,10.0,20.971,20.959,10.0]
[1680317107985,10.0,20.971,20.961,10.0]
[1680317108478,10.0,20.974,20.962,17.0]
[1680317108683,20.0,20.973,20.962,17.0]
[1680317108885,10.0,20.972,20.962,17.0]
[1680317110577,10.0,20.972,20.96,17.0]
[1680317116776,10.0,20.972,20.958,17.0]
[1680317117173,10.0,20.972,20.955,118.8684]
[1680317117378,27.14,20.97,20.955,118.8684]
[1680317117588,10.0,20.969,20.955,118.8684]
[1680317118894,20.0,20.968,20.952,114.0329]
[1680317119077,27.14,20.96,20.952,114.0329]
[1680317119482,37.0,20.968,20.952,114.0329]
[1680317119680,37.0,20.968,20.953,10.0]
[1680317119681,10.0,20.967,20.953,10.0]
[1680317119979,20.0,20.966,20.953,10.0]
[1680317120179,10.0,20.965,20.953,10.0]
[1680317120393,20.0,20.964,20.952,114.0329]
[1680317120701,10.0,20.963,20.952,114.0329]
[1680317120887,20.0,20.962,20.953,27.0]
[1680317121489,20.0,20.962,20.953,17.0]
[1680317124392,10.0,20.961,20.953,17.0]
[1680317124600,20.0,20.96,20.953,17.0]
[1680317125390,20.0,20.96,20.954,19.08583]
[1680317126896,47.14,20.96,20.954,19.08583]
[1680317127198,10.0,20.959,20.954,19.08583]
[1680317127398,20.0,20.958,20.954,19.08583]
[1680317127699,10.0,20.957,20.954,19.08583]
[1680317127898,20.0,20.956,20.954,19.08583]
[1680317130390,10.0,20.955,20.954,19.08583]
[1680317130887,30.0,20.955,20.954,19.08583]
[1680317135405,30.0,20.955,20.939,10.0]
[1680317135606,20.0,20.954,20.939,10.0]
[1680317137320,20.0,20.954,20.946,10.0]
[1680317137798,20.0,20.954,20.945,10.0]
[1680317138412,10.0,20.953,20.939,10.0]
[1680317138599,20.0,20.952,20.945,17.0]
[1680317139397,20.0,20.952,20.939,10.0]
[1680317139921,27.14,20.95,20.938,115.0174]
[1680317140212,27.14,20.95,20.933,115.889]
[1680317140416,10.0,20.948,20.933,115.889]
[1680317140614,20.0,20.947,20.933,115.889]
[1680317141517,10.0,20.946,20.933,115.889]
[1680317141808,20.0,20.945,20.933,115.889]
[1680317142111,10.0,20.944,20.933,115.889]
[1680317142304,10.0,20.942,20.933,115.889]
[1680317142610,20.0,20.941,20.933,115.889]
[1680317143895,20.0,20.941,20.934,17.0]
[1680317145501,20.0,20.941,20.935,30.0]
[1680317145702,20.0,20.941,20.935,29.5]
[1680317151723,10.0,20.94,20.935,29.5]
[1680317152128,37.14,20.94,20.935,29.5]
[1680317157933,37.14,20.94,20.927,10.0]
[1680317158528,37.14,20.94,20.923,10.0]
[1680317158730,37.14,20.94,20.924,17.0]
[1680317158933,37.14,20.94,20.925,10.0]
[1680317163825,37.14,20.94,20.925,9.5]
[1680317164622,37.14,20.94,20.923,10.0]
[1680317165123,37.14,20.94,20.922,119.7534]
[1680317165323,20.0,20.939,20.922,109.7534]
[1680317165623,10.0,20.938,20.922,109.7534]
[1680317165815,10.0,20.936,20.922,109.7534]
[1680317166021,20.0,20.935,20.922,109.7534]
[1680317166221,10.0,20.934,20.922,109.7534]
[1680317166420,20.0,20.933,20.922,109.7534]
[1680317166629,10.0,20.932,20.922,109.7534]
[1680317166835,20.0,20.931,20.922,109.7534]
[1680317170030,20.0,20.931,20.922,139.2534]
[1680317172826,10.0,20.93,20.922,139.2534]
[1680317174134,20.0,20.931,20.922,139.2534]
[1680317179542,20.0,20.931,20.922,109.7534]
[1680317180429,10.0,20.93,20.922,109.7534]
[1680317181546,20.0,20.931,20.922,109.7534]
[1680317183039,10.0,20.93,20.922,109.7534]